bitfinex-derivatives/quotes_ETHF0:USTF0_20260316
["timestamp","ask_amount","ask_price","bid_price","bid_amount"]
[1773665194510,11.88470422,2283.4,2282.6,0.0052644]
[1773665194903,13.07883925,2283.4,2282.6,0.0052644]
[1773665196917,11.88470422,2283.4,2282.6,0.0052644]
[1773665197422,11.88470422,2283.4,2282.2,12.52914041]
[1773665197718,11.88129872,2283.2,2282.2,12.52914041]
[1773665197914,11.88129872,2283.0,2282.2,12.52914041]
[1773665198418,11.88129872,2283.0,2282.2,12.53432383]
[1773665200617,11.88129872,2283.0,2282.0,12.52914041]
[1773665200817,11.88129872,2283.0,2281.9,10.988]
[1773665200818,11.88129872,2282.8,2281.9,12.52914041]
[1773665201719,11.88129872,2282.8,2281.9,23.52569093]
[1773665202013,11.88129872,2282.8,2282.0,12.52914041]
[1773665208027,11.88129872,2283.1,2282.2,12.52914041]
[1773665208926,11.88129872,2283.1,2282.4,12.52914041]
[1773665210832,11.88129872,2283.3,2282.4,12.52914041]
[1773665217041,11.88129872,2283.3,2282.6,11.90949217]
[1773665221247,11.70409293,2282.6,2282.0,22.96649217]
[1773665221546,11.70409293,2282.6,2282.1,11.90949217]
[1773665221742,11.034,2282.9,2282.1,11.90949217]
[1773665221948,11.70409293,2283.2,2282.6,11.90949217]
[1773665225054,11.70749843,2283.4,2282.9,11.90949217]
[1773665226561,11.70749843,2283.4,2282.7,22.98249217]
[1773665227459,11.70749843,2283.4,2282.7,11.073]
[1773665227758,11.70749843,2283.4,2282.5,11.90949217]
[1773665227759,11.70409293,2283.0,2282.3,11.90949217]
[1773665230958,11.70409293,2283.0,2282.2,11.083]
[1773665231358,11.70409293,2283.0,2282.1,11.90949217]
[1773665231759,11.70409293,2283.0,2281.9,0.00455052]
[1773665231959,11.70409293,2283.0,2282.0,11.90949217]
[1773665233562,11.075,2282.9,2282.0,11.90949217]
[1773665233763,11.70409293,2282.8,2282.1,11.90949217]
[1773665237369,11.089,2282.9,2282.1,11.90949217]
[1773665237664,22.79309293,2282.9,2282.1,11.90949217]
[1773665237864,11.70409293,2282.8,2282.1,11.90949217]
[1773665240165,11.70409293,2282.8,2282.0,11.90949217]
[1773665240767,11.70409293,2282.6,2282.0,11.90949217]
[1773665243367,11.48051793,2282.5,2281.9,0.00100286]
[1773665243570,11.48051793,2282.5,2281.6,11.73189716]
[1773665243763,11.48051793,2282.3,2281.5,11.73189716]
[1773665244170,15.29123981,2282.6,2281.5,11.73189716]
[1773665244171,11.48051793,2282.1,2281.5,11.73189716]
[1773665244669,11.48051793,2282.1,2281.5,11.73615781]
[1773665246867,11.48051793,2282.6,2281.5,11.73615781]
[1773665247071,11.48051793,2282.4,2281.6,11.73189716]
[1773665247267,22.61651793,2282.4,2281.6,11.73189716]
[1773665247568,11.48051793,2282.3,2281.6,11.73189716]
[1773665249168,11.48051793,2282.3,2280.5,0.2205926]
[1773665249169,11.48051793,2281.7,2280.2,11.73189716]
[1773665249363,0.21909,2281.8,2280.2,11.73189716]
[1773665249364,11.48051793,2281.5,2280.2,11.73189716]
[1773665250270,11.48051793,2281.5,2280.2,11.73715334]
[1773665250271,11.48051793,2281.3,2280.2,11.73715334]
[1773665250668,22.63662539,2281.5,2280.2,11.73715334]
[1773665250864,11.48462539,2281.5,2280.4,11.73189716]
[1773665251174,11.48462539,2281.5,2280.6,11.73189716]
[1773665251362,11.48462539,2281.5,2280.8,11.73189716]
[1773665251973,0.00410746,2281.5,2280.8,11.73189716]
[1773665252372,11.48462539,2281.5,2280.8,11.73189716]
[1773665252568,11.48462539,2281.5,2280.2,0.00525618]
[1773665252569,11.48462539,2281.5,2280.4,11.73189716]
[1773665252775,11.48462539,2281.5,2280.6,11.73189716]
[1773665255778,11.48462539,2281.5,2280.6,22.90789716]
[1773665256671,11.48462539,2281.5,2280.4,11.73189716]
[1773665256978,11.48051793,2281.3,2280.2,11.73715334]
[1773665257183,11.48051793,2281.3,2280.4,11.73189716]
[1773665258783,11.48051793,2281.3,2280.2,11.73715334]
[1773665259376,11.48051793,2281.3,2280.2,0.00525618]
[1773665260783,11.48051793,2281.3,2280.2,11.73715334]
[1773665261277,11.48051793,2281.3,2280.2,0.00525618]
[1773665262177,11.48051793,2281.1,2280.0,11.73189716]
[1773665262479,11.48051793,2280.9,2280.0,11.73189716]
[1773665263184,11.48051793,2280.9,2280.0,11.73513442]
[1773665263378,11.48051793,2280.9,2280.0,0.00323726]
[1773665264475,11.48051793,2280.5,2279.2,11.73189716]
[1773665264677,11.48051793,2280.3,2279.4,11.73189716]
[1773665265484,11.48051793,2280.5,2279.4,11.7354191]
[1773665265683,0.2192,2280.7,2279.4,11.7354191]
[1773665265684,11.48051793,2280.3,2279.4,11.7354191]
[1773665266285,11.48051793,2280.3,2279.4,0.00352194]
[1773665267091,11.48051793,2280.3,2279.4,11.7354191]
[1773665267987,11.48051793,2280.3,2279.0,11.73189716]
[1773665268288,11.48051793,2280.1,2279.0,11.73189716]
[1773665268489,11.48051793,2279.9,2279.0,11.73189716]
[1773665268685,11.48051793,2279.9,2278.0,11.95134716]
[1773665268989,11.48051793,2279.7,2278.0,11.95134716]
[1773665269688,11.48051793,2279.7,2278.5,11.73189716]
[1773665269884,11.48051793,2279.7,2278.7,11.73189716]
[1773665270078,11.48051793,2279.7,2278.9,11.73189716]
[1773665270589,11.48051793,2279.7,2279.0,22.93589716]
[1773665270778,11.48051793,2279.7,2279.1,11.73189716]
[1773665270979,11.70051639,2279.9,2279.1,11.73189716]
[1773665271182,11.4840714,2279.9,2279.1,11.73189716]
[1773665272379,11.4840714,2279.9,2278.8,11.29970563]
[1773665273288,11.4840714,2279.9,2278.9,11.29970563]
[1773665273693,11.4840714,2279.9,2278.8,11.208]
[1773665273992,11.4840714,2279.9,2278.6,22.52655275]
[1773665274191,11.4840714,2279.9,2278.6,11.31855275]
[1773665274492,10.91485636,2279.7,2278.6,11.31855275]
[1773665274893,10.91485636,2279.7,2278.4,11.31855275]
[1773665278593,10.91485636,2279.8,2278.6,11.31855275]
[1773665278892,10.91485636,2279.8,2278.3,11.21]
[1773665278893,0.00355347,2279.9,2279.0,11.31855275]
[1773665279086,0.00355347,2279.9,2279.2,11.31855275]
[1773665279995,10.91840983,2279.9,2279.2,11.31855275]
[1773665281395,10.91840983,2279.9,2279.2,22.53355275]
[1773665282090,10.91840983,2279.9,2279.2,11.31855275]
[1773665282296,10.91840983,2279.9,2279.2,22.53555275]
[1773665283398,10.91840983,2279.9,2279.2,11.31855275]
[1773665285595,10.91840983,2279.9,2279.0,11.31855275]
[1773665285795,10.91485636,2279.7,2278.7,22.54255275]
[1773665286598,10.91485636,2279.7,2278.8,11.31855275]
[1773665287690,11.13416636,2279.5,2278.0,11.31855275]
[1773665287889,11.13416636,2279.5,2277.0,8.78212]
[1773665287890,11.13421636,2279.0,2277.0,11.31855275]
[1773665288094,10.91485636,2278.8,2277.4,11.31855275]
[1773665288290,10.91485636,2278.8,2277.6,11.53804275]
[1773665289195,10.91485636,2278.8,2277.8,11.31855275]
[1773665289791,11.13663951,2279.0,2277.8,11.31855275]
[1773665289996,11.13663951,2279.0,2277.9,11.31855275]
[1773665290194,10.91485636,2278.8,2277.9,11.31855275]
[1773665290392,11.13663951,2279.0,2277.9,11.31855275]
[1773665290593,14.58341696,2279.4,2278.3,11.31855275]
[1773665290797,11.13331305,2279.4,2278.5,11.31855275]
[1773665291199,10.91485636,2279.4,2278.5,11.31855275]
[1773665292800,10.91485636,2279.2,2278.5,11.31855275]
[1773665293193,10.91485636,2279.4,2278.5,11.31855275]
[1773665293398,10.91485636,2279.4,2278.6,11.31855275]
[1773665293599,6.03752664,2279.3,2278.6,11.31855275]
[1773665293800,10.91485636,2279.2,2278.6,11.31855275]
[1773665295904,10.91485636,2279.2,2278.0,11.31855275]
[1773665296105,10.91485636,2279.2,2277.9,0.21946]
[1773665296106,10.91485636,2279.2,2278.2,11.31855275]
[1773665298001,10.91485636,2279.4,2278.4,11.31855275]
[1773665298201,10.91485636,2279.4,2278.6,11.31855275]
[1773665298899,0.22145185,2279.5,2278.2,11.31855275]
[1773665298900,10.91485636,2279.2,2278.2,11.31855275]
[1773665300603,10.91485636,2279.2,2278.3,11.31855275]
[1773665301005,10.91485636,2279.0,2277.9,11.31855275]
[1773665301208,0.21933,2279.3,2277.9,11.31855275]
[1773665301209,10.91485636,2278.8,2277.9,11.31855275]
[1773665301409,10.91485636,2279.2,2278.1,11.31855275]
[1773665301706,10.91485636,2279.0,2278.1,11.31855275]
[1773665302512,10.91485636,2279.0,2278.2,10.84701652]
[1773665303713,10.58717941,2279.3,2278.2,10.84701652]
[1773665303910,10.58717941,2279.1,2278.2,10.84701652]
[1773665304108,10.58717941,2278.9,2278.2,10.84701652]
[1773665308112,10.58717941,2279.1,2278.2,10.84701652]
[1773665308310,16.57538317,2279.0,2278.2,10.84701652]
[1773665308617,10.58717941,2278.8,2277.7,10.84701652]
[1773665308819,10.58717941,2278.6,2277.7,10.84701652]
[1773665309018,10.58717941,2278.4,2277.7,10.84701652]
[1773665309219,10.58717941,2278.6,2277.7,10.84701652]
[1773665309417,5.98798789,2278.5,2277.7,10.84701652]
[1773665309621,10.58717941,2278.4,2277.7,10.84701652]
[1773665310012,10.58717941,2278.4,2277.7,11.14701652]
[1773665310519,10.58717941,2278.4,2277.3,10.84701652]
[1773665310716,10.58717941,2278.4,2277.5,11.14701652]
[1773665310917,10.58717941,2278.4,2277.5,10.84701652]
[1773665311616,10.58717941,2278.4,2277.5,11.14701652]
[1773665314221,10.80761908,2278.4,2277.5,11.14701652]
[1773665314422,10.58717941,2278.6,2277.7,10.84701652]
[1773665314719,10.58717941,2278.5,2277.7,10.84701652]
[1773665315621,10.58717941,2278.7,2277.7,11.14701652]
[1773665315820,10.58717941,2278.5,2277.7,10.84701652]
[1773665316716,10.58717941,2278.5,2277.7,11.14701652]
[1773665317020,10.80227749,2278.7,2277.7,10.84701652]
[1773665317220,5.99264236,2278.6,2277.7,10.84701652]
[1773665317420,16.57982177,2278.6,2277.7,11.14701652]
[1773665317619,0.21509808,2278.7,2277.9,10.84701652]
[1773665317922,10.58717941,2278.7,2277.9,10.84701652]
[1773665318525,10.58717941,2278.7,2277.5,10.84701652]
[1773665318726,10.58717941,2278.7,2277.5,11.14701652]
[1773665318921,10.58717941,2278.7,2277.5,10.84701652]
[1773665319126,10.58717941,2278.7,2277.7,10.84701652]
[1773665321329,10.58717941,2278.5,2277.7,10.84701652]
[1773665321933,10.58717941,2278.5,2277.7,11.14701652]
[1773665322230,10.58717941,2278.5,2277.7,10.84701652]
[1773665322431,10.58717941,2278.5,2277.9,10.84701652]
[1773665323932,10.58717941,2278.5,2277.9,11.14701652]
[1773665324222,10.58717941,2278.5,2277.9,0.3]
[1773665324734,10.58717941,2278.5,2278.0,0.3]
[1773665324924,10.58717941,2278.5,2277.8,10.84701652]
[1773665325126,10.58717941,2278.5,2277.9,0.3]
[1773665325622,10.58717941,2278.5,2278.0,0.3]
[1773665325828,10.58717941,2278.5,2277.7,10.84701652]
[1773665326038,10.58717941,2278.5,2277.8,0.3]
[1773665326228,10.58717941,2278.5,2277.7,10.84701652]
[1773665326529,10.58717941,2278.5,2277.8,0.3]
[1773665326732,10.58717941,2278.5,2277.8,10.84701652]
[1773665327033,10.58717941,2278.5,2277.9,0.3]
[1773665327232,10.58717941,2278.5,2277.8,10.84701652]
[1773665327527,10.58717941,2278.5,2277.9,0.3]
[1773665327725,10.58717941,2278.5,2277.5,10.84701652]
[1773665327930,10.58717941,2278.3,2277.5,10.84701652]
[1773665328128,10.59085322,2278.3,2277.3,10.84701652]
[1773665328430,10.58717941,2278.1,2277.3,10.84701652]
[1773665328828,0.00367381,2278.3,2277.6,10.84701652]
[1773665329030,5.94430408,2278.3,2277.6,10.84701652]
[1773665329228,16.53148349,2278.3,2277.8,10.84701652]
[1773665329431,10.59085322,2278.3,2277.8,10.84701652]
[1773665331326,10.59085322,2278.3,2277.8,11.14701652]
[1773665332240,0.00367381,2278.3,2278.0,10.84701652]
[1773665332633,5.94689368,2278.3,2278.0,11.14701652]
[1773665333837,0.00367381,2278.3,2278.1,0.3]
[1773665334039,5.93691333,2278.3,2278.0,10.84701652]
[1773665334235,5.93691333,2278.3,2278.0,8.80008846]
[1773665334437,16.19262927,2278.3,2278.0,8.80008846]
[1773665334637,10.25938975,2278.3,2278.0,8.80008846]
[1773665335339,10.25938975,2278.3,2277.3,10.35789837]
[1773665335743,10.25571594,2278.1,2277.3,10.35789837]
[1773665340341,10.25571594,2278.1,2277.2,12.72282509]
[1773665340342,10.25571594,2277.6,2277.2,0.00506609]
[1773665340543,10.25571594,2278.1,2277.2,11.56219346]
[1773665341546,11.29967381,2278.3,2277.4,11.55712737]
[1773665341547,10.25938975,2278.3,2277.4,11.55712737]
[1773665341747,10.25938975,2278.3,2277.7,10.35789837]
[1773665342441,10.25571594,2278.7,2277.7,10.57737837]
[1773665342637,10.25571594,2278.6,2277.8,10.35789837]
[1773665343544,1.199229,2278.3,2277.8,10.35789837]
[1773665343743,10.25571594,2278.2,2277.5,10.35789837]
[1773665344348,10.25571594,2278.0,2277.3,10.35789837]
[1773665344639,10.25571594,2278.4,2277.3,10.35789837]
[1773665344843,10.25571594,2278.2,2277.3,10.35789837]
[1773665345237,10.25571594,2278.4,2277.3,10.35789837]
[1773665346742,10.26072499,2278.6,2277.5,10.35789837]
[1773665346945,10.25571594,2278.5,2277.5,10.35789837]
[1773665347146,0.00500905,2278.6,2277.2,11.30806609]
[1773665347147,10.26072499,2278.6,2277.7,10.35789837]
[1773665348545,0.00500905,2278.6,2277.9,10.35789837]
[1773665349046,10.26072499,2278.6,2277.9,10.35789837]
[1773665349447,10.26072499,2278.6,2277.4,10.35789837]
[1773665350644,10.25571594,2278.4,2277.4,10.35789837]
[1773665351546,10.25571594,2278.4,2277.2,0.22459609]
[1773665351547,10.26072499,2278.6,2277.6,10.35789837]
[1773665351748,0.00500905,2278.6,2277.7,10.35789837]
[1773665351950,10.25571594,2278.9,2278.1,10.35789837]
[1773665352251,10.25571594,2279.2,2278.1,10.35789837]
[1773665353152,10.26114822,2279.2,2278.1,10.35789837]
[1773665353550,10.26114822,2279.2,2278.3,10.35789837]
[1773665353850,0.00543228,2279.2,2278.5,10.35789837]
[1773665354253,10.25571594,2279.6,2278.5,10.35789837]
[1773665354443,10.25571594,2279.4,2278.5,10.35789837]
[1773665355250,10.26069342,2279.4,2278.5,10.35789837]
[1773665357454,10.26069342,2279.4,2278.6,10.35789837]
[1773665359749,0.00497748,2279.4,2278.6,10.35789837]
[1773665360654,0.00497748,2279.4,2278.6,10.57728837]
[1773665361051,10.25571594,2279.7,2278.6,10.57728837]
[1773665361254,11.336,2280.4,2278.6,10.57728837]
[1773665361458,10.25571594,2280.2,2278.6,10.57728837]
[1773665361957,10.25901993,2280.2,2278.6,10.57728837]
[1773665362656,10.25901993,2280.2,2278.8,9.39606163]
[1773665362855,10.25901993,2280.2,2278.8,9.40032576]
[1773665363257,10.25901993,2280.2,2279.0,9.39606163]
[1773665364356,10.25901993,2280.2,2279.2,9.39606163]
[1773665364951,10.25901993,2280.2,2279.4,9.39606163]
[1773665368164,10.25901993,2280.2,2279.5,20.70706163]
[1773665368362,10.25901993,2280.2,2279.6,9.39606163]
[1773665369359,10.09256349,2280.4,2279.4,11.312]
[1773665369666,0.21923,2280.3,2279.4,9.39606163]
[1773665369867,10.09256349,2280.2,2279.2,9.39606163]
[1773665370264,10.09623631,2280.2,2279.2,9.39606163]
[1773665371668,10.09623631,2280.2,2279.0,9.39606163]
[1773665374866,5.8361468,2280.1,2279.0,9.39606163]
[1773665375068,10.09256349,2280.0,2279.0,9.39606163]
[1773665377080,10.09256349,2280.0,2279.6,0.1]
[1773665377376,10.09256349,2280.0,2278.9,11.292]
[1773665377579,10.09256349,2280.0,2279.0,9.39606163]
[1773665377879,10.09256349,2279.8,2279.0,9.39606163]
[1773665378082,10.09256349,2279.8,2278.8,9.40032576]
[1773665381785,5.87218019,2279.7,2278.8,9.40032576]
[1773665381980,10.09256349,2279.9,2278.8,9.40032576]
[1773665382181,15.96508858,2279.8,2278.8,9.40032576]
[1773665382380,10.09256349,2279.8,2278.8,9.40032576]
[1773665382685,15.96666238,2279.7,2278.8,9.40032576]
[1773665382887,10.09256349,2279.7,2278.8,9.40032576]
[1773665383281,10.09256349,2279.6,2278.8,9.40032576]
[1773665384384,10.09256349,2279.8,2278.9,9.39606163]
[1773665384573,5.87853768,2279.7,2278.9,9.39606163]
[1773665386285,15.97110117,2279.7,2278.9,9.39606163]
[1773665386482,10.09256349,2279.5,2278.2,11.317]
[1773665386687,10.09256349,2279.1,2278.1,9.39606163]
[1773665386982,10.09256349,2278.9,2278.1,9.39606163]
[1773665387586,3.6508133,2279.2,2278.1,9.39916591]
[1773665387587,10.09256349,2279.1,2278.1,9.39916591]
[1773665387785,15.96900988,2279.0,2278.1,9.39916591]
[1773665387987,10.09256349,2279.0,2278.1,9.39916591]
[1773665388886,10.09256349,2279.3,2278.1,9.39916591]
[1773665389179,5.46048139,2279.6,2278.1,9.39916591]
[1773665389180,15.96647683,2279.2,2278.1,9.39916591]
[1773665389384,10.09256349,2279.2,2278.1,9.39916591]
[1773665389585,10.09256349,2279.5,2278.3,9.39606163]
[1773665389789,15.9648545,2279.4,2278.3,9.39606163]
[1773665390087,10.09256349,2279.4,2278.3,9.39606163]
[1773665390487,10.09256349,2279.6,2278.3,9.39606163]
[1773665390690,15.96527652,2279.5,2278.3,9.39606163]
[1773665390884,10.09256349,2279.5,2278.5,9.39606163]
[1773665391190,10.09256349,2279.5,2278.7,9.39606163]
[1773665391588,10.09256349,2279.8,2278.7,9.39606163]
[1773665391788,15.96793383,2279.7,2278.7,9.39606163]
[1773665391985,10.09256349,2279.7,2278.7,9.39606163]
[1773665392386,0.22183937,2279.8,2278.7,9.39606163]
[1773665392587,5.87924784,2279.8,2278.7,9.39606163]
[1773665392789,10.01422361,2279.9,2278.7,9.39606163]
[1773665393180,10.01422361,2279.9,2278.9,9.5880326]
[1773665393781,10.01422361,2279.9,2278.8,9.57747613]
[1773665394189,10.01422361,2279.9,2278.8,9.35809613]
[1773665394782,10.23638218,2279.9,2278.8,9.35809613]
[1773665395196,10.23638218,2279.9,2278.8,9.57747613]
[1773665395789,10.01422361,2279.9,2278.8,9.57747613]
[1773665395989,10.01422361,2279.9,2278.9,9.35809613]
[1773665397393,0.00367282,2280.2,2279.1,9.35809613]
[1773665397597,9.91195407,2280.1,2279.3,9.35809613]
[1773665398891,9.91195407,2279.9,2279.0,9.35809613]
[1773665399092,3.65448612,2280.2,2279.0,9.57744613]
[1773665399093,9.91195407,2280.1,2279.0,9.57744613]
[1773665399289,9.91195407,2280.1,2279.2,9.35809613]
[1773665399991,0.22045253,2280.2,2279.2,9.35809613]
[1773665400591,0.00367282,2280.2,2279.4,9.35809613]
[1773665400797,9.91195407,2280.7,2279.6,9.35809613]
[1773665400996,9.91195407,2280.7,2279.8,9.35809613]
[1773665401791,10.13732492,2280.7,2279.8,9.36266854]
[1773665404396,0.22537085,2280.7,2279.8,9.36266854]
[1773665404598,9.91671298,2280.7,2279.8,9.36266854]
[1773665405199,0.00475891,2280.7,2279.8,9.36266854]
[1773665405593,9.91671298,2280.7,2279.8,9.36266854]
[1773665408100,0.00475891,2280.7,2279.8,9.36266854]
[1773665409000,9.91671298,2280.7,2280.0,9.35809613]
[1773665409899,0.00475891,2280.7,2280.0,9.35809613]
[1773665410303,9.91671298,2280.7,2280.0,9.35809613]
[1773665412107,0.00475891,2280.7,2280.0,9.35809613]
[1773665412602,9.91671298,2280.7,2280.1,9.35809613]
[1773665415009,0.00475891,2280.7,2280.1,9.35809613]
[1773665416207,0.21473714,2281.0,2280.1,9.35809613]
[1773665416409,9.91195407,2281.1,2280.1,9.35809613]
[1773665416608,9.91195407,2281.3,2280.3,9.35809613]
[1773665417008,10.19416683,2281.3,2280.3,9.35809613]
[1773665417211,10.19906449,2281.3,2280.3,9.35809613]
[1773665419012,10.42121822,2281.3,2280.3,9.35809613]
[1773665419215,10.42121822,2281.3,2280.5,9.35809613]
[1773665421016,10.42121822,2281.3,2280.4,11.333]
[1773665421211,10.42121822,2281.3,2280.4,20.69109613]
[1773665423716,10.42121822,2281.3,2280.5,9.07459366]
[1773665425107,10.42121822,2281.3,2280.2,9.07459366]
[1773665425405,9.67074186,2281.1,2280.3,9.07459366]
[1773665427407,9.67074186,2281.1,2280.4,9.07459366]
[1773665428007,10.18000601,2281.3,2280.4,9.07459366]
[1773665428317,5.8774031,2281.2,2280.4,9.07459366]
[1773665428517,0.22705139,2281.3,2280.4,9.07459366]
[1773665429212,6.10679703,2281.3,2280.4,9.07459366]
[1773665429425,9.67074186,2281.1,2280.6,9.07459366]
[1773665430215,9.67074186,2281.1,2280.5,11.349]
[1773665430417,9.67074186,2281.1,2280.4,9.07459366]
[1773665434719,9.67074186,2280.9,2280.2,9.07459366]
[1773665434914,9.67074186,2280.7,2280.2,9.07459366]
[1773665435120,9.67074186,2281.1,2280.2,9.07459366]
[1773665435322,9.67074186,2280.9,2280.0,11.36]
[1773665435620,9.67074186,2280.7,2280.0,11.361]
[1773665435821,9.67074186,2280.5,2280.0,20.43559366]
[1773665436015,9.67074186,2280.5,2280.1,9.07459366]
[1773665439018,9.67074186,2280.5,2280.0,11.368]
[1773665439019,9.67074186,2280.5,2279.9,9.07459366]
[1773665439218,5.88374466,2280.4,2279.8,0.00457241]
[1773665439419,9.67074186,2280.3,2279.8,9.07916607]
[1773665439624,9.67074186,2280.3,2279.8,0.00457241]
[1773665439925,9.67074186,2280.3,2279.8,9.07916607]
[1773665441221,9.67074186,2280.1,2279.6,9.07459366]
[1773665441428,9.67074186,2280.1,2279.4,20.45059366]
[1773665441625,9.67074186,2280.1,2279.5,9.07459366]
[1773665442126,9.67074186,2280.1,2279.5,9.0779192]
[1773665443021,9.67074186,2280.1,2279.5,0.00332554]
[1773665443228,9.67074186,2280.1,2279.5,9.0779192]
[1773665445829,9.67074186,2280.3,2279.5,9.0779192]
[1773665446524,9.67074186,2280.3,2279.5,10.27512686]
[1773665446724,9.67074186,2280.3,2279.5,9.0779192]
[1773665447725,9.67074186,2280.3,2279.6,11.393]
[1773665447929,9.67074186,2280.3,2279.6,20.46759366]
[1773665448119,9.67074186,2280.1,2279.6,20.46759366]
[1773665449027,9.67074186,2280.1,2279.7,9.07459366]
[1773665449419,9.67074186,2280.1,2279.6,20.46759366]
[1773665449827,9.67074186,2280.1,2279.7,9.07459366]
[1773665450328,9.67074186,2280.1,2279.5,0.00332554]
[1773665450524,9.67074186,2280.1,2279.5,9.0779192]
[1773665452933,8.91148737,2280.6,2279.8,9.13396867]
[1773665453132,8.91148737,2280.6,2280.0,9.13396867]
[1773665453628,9.12647549,2280.6,2280.0,9.13396867]
[1773665454431,8.58690108,2280.9,2280.0,9.13396867]
[1773665454633,8.58690108,2280.7,2280.0,9.13396867]
[1773665461138,8.58690108,2280.9,2280.2,8.76104151]
[1773665461440,8.58690108,2280.9,2280.4,8.76104151]
[1773665463541,8.58690108,2280.9,2279.8,1.19720766]
[1773665463743,8.58690108,2280.9,2280.0,8.76104151]
[1773665466139,8.58690108,2280.7,2279.7,8.76104151]
[1773665466343,8.58690108,2280.5,2279.7,8.76104151]
[1773665466642,8.58690108,2280.3,2279.7,8.76104151]
[1773665466846,8.58690108,2280.3,2279.6,20.20604151]
[1773665467643,8.58690108,2280.3,2279.6,8.76104151]
[1773665469448,8.58690108,2280.5,2279.6,8.76104151]
[1773665470049,8.58690108,2280.3,2279.6,8.76104151]
[1773665472046,8.58690108,2280.1,2279.5,0.00332554]
[1773665472248,8.58690108,2280.1,2279.5,8.76436705]
[1773665473448,7.44891475,2279.9,2279.0,8.86104151]
[1773665473649,7.44891475,2279.9,2279.1,8.76104151]
[1773665473849,7.44891475,2280.2,2279.1,8.76104151]
[1773665474350,7.44891475,2280.2,2279.1,8.76450947]
[1773665480559,8.05269763,2280.0,2279.1,8.76450947]
[1773665481055,8.05269763,2279.8,2279.1,8.76450947]
[1773665488554,1.19766212,2280.2,2279.1,8.76450947]
[1773665488755,7.85662889,2280.1,2279.5,8.67773755]
[1773665489449,7.85662889,2280.1,2279.2,8.67773755]
[1773665492058,7.85662889,2280.1,2279.4,8.67773755]
[1773665494462,7.71904288,2280.3,2279.4,8.67773755]
[1773665494661,5.88912541,2280.2,2279.4,8.67773755]
[1773665494865,7.71904288,2280.1,2279.4,8.67773755]
[1773665509172,7.71904288,2280.1,2279.4,20.19173755]
[1773665509371,7.71904288,2280.1,2279.5,8.67773755]
[1773665513274,7.55439108,2280.3,2279.5,8.67773755]
[1773665513472,13.45598262,2280.2,2279.5,8.67773755]
[1773665513672,5.90159154,2280.1,2279.5,8.67773755]
[1773665514067,7.55439108,2280.2,2279.5,8.67773755]
[1773665514477,7.72630832,2280.4,2279.5,8.67773755]
[1773665514669,5.46048139,2280.8,2279.9,8.65152183]
[1773665514670,7.51126057,2280.8,2279.9,8.65152183]
[1773665514976,7.51126057,2280.8,2279.8,0.21928]
[1773665514977,7.51126057,2280.8,2280.1,8.65152183]
[1773665517975,7.95554433,2280.6,2279.8,8.65152183]
[1773665519383,8.00880552,2280.8,2279.8,8.65152183]
[1773665523085,8.00880552,2280.8,2279.9,8.65152183]
[1773665523586,5.85422266,2280.7,2279.9,8.65152183]
[1773665523784,7.92770922,2280.6,2279.4,8.65152183]
[1773665523989,7.92770922,2280.4,2279.4,8.65152183]
[1773665524484,5.85524201,2280.3,2279.4,8.65152183]
[1773665524875,7.92455173,2280.6,2279.4,8.65152183]
[1773665525077,7.92455173,2280.6,2279.6,8.65152183]
[1773665526683,8.14609406,2280.6,2279.6,8.65152183]
[1773665528089,8.14609406,2280.6,2279.8,8.65152183]
[1773665531792,7.72776498,2281.0,2280.3,8.65152183]
[1773665536083,0.22626222,2281.3,2280.3,8.65152183]
[1773665536284,7.32123685,2281.2,2280.3,8.65152183]
[1773665539295,7.32123685,2281.2,2280.4,8.65152183]
[1773665542690,0.00489766,2281.3,2280.4,8.65152183]
[1773665542895,7.22244562,2281.3,2280.4,8.65152183]
[1773665543292,0.00489766,2281.3,2280.4,8.65152183]
[1773665543692,7.20053009,2281.7,2280.4,8.65152183]
[1773665543889,7.20053009,2281.7,2280.6,8.1319915]
[1773665544197,7.20053009,2281.7,2280.8,8.1319915]
[1773665544397,7.20053009,2281.7,2281.0,8.1319915]
[1773665544592,7.20588068,2281.7,2281.0,8.13555314]
[1773665544799,7.29616464,2281.9,2281.0,8.13555314]
[1773665544992,3.67029909,2282.3,2281.0,8.13555314]
[1773665544993,7.29616464,2282.3,2281.1,0.21915]
[1773665545197,7.29616464,2282.3,2281.2,8.1319915]
[1773665545696,7.29616464,2282.3,2281.4,8.1319915]
[1773665545891,7.58111761,2282.3,2281.3,8.1319915]
[1773665546093,7.40424202,2282.1,2281.0,0.00356164]
[1773665546301,8.6473084,2281.9,2280.7,8.1319915]
[1773665546498,5.83355886,2281.8,2280.7,8.1319915]
[1773665546700,7.43458623,2281.7,2280.7,8.1319915]
[1773665547301,7.43458623,2281.7,2280.7,8.13619003]
[1773665551310,7.28466947,2281.9,2280.7,8.35538003]
[1773665553307,0.21917176,2282.0,2280.7,8.35538003]
[1773665553609,7.21841038,2282.0,2280.7,8.35538003]
[1773665554616,7.21841038,2282.0,2281.2,8.1319915]
[1773665554806,7.18951146,2282.2,2281.2,8.1319915]
[1773665555410,7.18951146,2282.2,2281.4,8.1319915]
[1773665559808,7.18951146,2282.2,2281.3,11.59]
[1773665559809,7.18951146,2282.2,2281.3,8.1319915]
[1773665560010,7.18951146,2282.2,2281.1,8.1319915]
[1773665560312,5.82324211,2282.1,2281.1,8.1319915]
[1773665560508,6.5736701,2282.0,2281.1,8.1319915]
[1773665565814,6.74897213,2281.8,2281.1,8.1319915]
[1773665569112,6.67486685,2281.6,2281.1,8.1319915]
[1773665574520,6.54025768,2281.4,2280.7,8.61101076]
[1773665574723,6.54025768,2281.4,2280.7,0.00419853]
[1773665574914,0.21911,2281.6,2280.7,0.00419853]
[1773665574915,6.46358896,2281.2,2280.7,0.00419853]
[1773665575313,6.46358896,2281.2,2280.7,8.61101076]
[1773665577218,6.46358896,2281.2,2280.7,0.00419853]
[1773665579028,6.33189143,2281.0,2280.3,8.60681223]
[1773665579915,6.33189143,2281.0,2280.3,8.61192045]
[1773665580114,6.31550309,2280.8,2280.3,0.00510822]
[1773665580314,6.29632574,2280.6,2279.4,8.60681223]
[1773665580518,6.29632574,2280.4,2279.4,8.60681223]
[1773665581424,6.29967441,2280.4,2279.4,8.61199096]
[1773665585820,6.29967441,2280.4,2279.4,0.00517873]
[1773665589730,6.29967441,2280.4,2279.4,8.61199096]
[1773665590830,6.01983997,2280.2,2279.4,0.00517873]
[1773665591025,6.01983997,2280.2,2279.2,8.60681223]
[1773665591230,6.01983997,2280.2,2278.5,8.60681223]
[1773665592126,5.97382513,2280.0,2278.5,8.61173984]
[1773665592329,5.89614869,2279.8,2278.5,8.61173984]
[1773665595233,5.84296556,2279.6,2278.5,8.61173984]
[1773665595929,6.11909855,2279.6,2278.5,8.61173984]
[1773665597131,5.83291055,2279.2,2277.9,1.1909797]
[1773665597335,5.81936286,2279.1,2278.0,8.60681223]
[1773665598035,5.81936286,2279.1,2278.0,8.61023156]
[1773665600033,6.00346276,2278.9,2278.0,8.61023156]
[1773665603336,6.00346276,2278.9,2278.0,7.77784066]
[1773665604239,6.0473143,2278.7,2278.0,7.77784066]
[1773665604538,6.05083832,2278.7,2278.0,7.77784066]
[1773665605837,0.00352402,2278.7,2278.0,7.77784066]